Cogmind - Beta 13 @@@ ROGUE MODE // 2024.03.19 @ 21:55:21 Player: LaGrange Result: Destroyed by PD-ICU(R) with Subdweller Machine Gun Performance ------------- Evolutions (0) 0 Regions Visited (3) 600 Robots Destroyed (9) 45 Value Destroyed (233) 233 Prototype IDs (0) 0 Alien Tech Used (0) 0 Bonus (0) 0 TOTAL SCORE: 878 Bonus ------- None Cogmind --------- Core Integrity 0/250 Matter 300/300 Energy 98/100 System Corruption 0% Temperature Cool (0) Movement Core (50) Location -10/Subcaves Parts ------- > --- POWER (1) -------- (None) > --- PROPULSION (2) --- (None) > --- UTILITY (2) ------ (None) > --- WEAPON (2) ------- (None) > --- INVENTORY (5) ---- Ion Engine Small Battery (100) Experimental Sensor Array Makeshift Hacking Suite EM Pulse Gun Peak State ------------ > --- POWER ------------ Neutrino Core > --- PROPULSION ------- Aluminum Leg Aluminum Leg > --- UTILITY ---------- Improved Heat Sink Seismic Detector > --- WEAPON ----------- Subdweller Laser Subdweller Machine Gun > --- INVENTORY -------- Ion Engine Heat Sink Experimental Sensor Array Makeshift Hacking Suite EM Pulse Gun [Rating: 17] Favorites ----------- Power Ion Engine Engine Ion Engine Power Core Neutrino Core Propulsion Aluminum Leg Leg Aluminum Leg Wheel Wheel Utility Seismic Detector Device Seismic Detector Storage Small Matter Pod Protection Weapon Shielding Weapon Light Assault Rifle Energy Gun Subdweller Laser Ballistic Gun Light Assault Rifle Special Weapon Mining Laser Build | -11 -10 -10 -10 ------- Run | Yrd Mat Min Sub Slots Evolved . | . . . . Power . | . . . . Propulsion . | . . . . Utility . | . . . . Weapon . | . . . . Parts Attached 37 | 6 10 11 10 Power 6 | 1 1 3 1 Engine 5 | 1 1 3 . Core 1 | . . . 1 Reactor . | . . . . Propulsion 8 | 3 . 5 . Treads . | . . . . Leg 5 | . . 5 . Wheel 3 | 3 . . . Hover . | . . . . Flight . | . . . . Utility 12 | . 6 . 6 Device 6 | . 2 . 4 Storage 2 | . 2 . . Processor . | . . . . Hackware . | . . . . Protection 4 | . 2 . 2 Artifact . | . . . . Weapon 11 | 2 3 3 3 Energy Gun 4 | 1 . 1 2 Energy Cannon . | . . . . Ballistic Gun 6 | 1 2 2 1 Ballistic Cannon . | . . . . Launcher . | . . . . Special Weapon 1 | . 1 . . Impact Weapon . | . . . . Slashing Weapon . | . . . . Piercing Weapon . | . . . . Special Melee Weapon . | . . . . Unidentified Prototypes . | . . . . Parts Lost 3 | . 1 2 . Power 1 | . . 1 . Propulsion 1 | . . 1 . Utility . | . . . . Weapon 1 | . 1 . . Highest Loss Streak 1 | . 1 1 . To Critical Strikes . | . . . . Average Slot Usage (%) 98 | . 91 100 99 Engine 9 | . 14 14 6 Core 4 | . . . 7 Leg 23 | . . 28 28 Wheel 4 | . 28 . . Device 20 | . 13 14 26 Protection 5 | . 6 14 1 Energy Gun 10 | . 1 6 14 Ballistic Gun 17 | . 25 21 14 Naked Turns . | . . . . Heaviest Build 27 | 6 10 11 27 Greatest Support 20 | 20 20 20 20 Greatest Overweight (x) 1 | . . . 1 Average Overweight (x) . | . . . . Largest Inventory Capacity 25 | 5 25 5 5 Average Capacity 5 | 5 5 5 5 Most Carried 5 | 5 5 5 5 Average Carried 4 | 2 4 4 4 Final Capacity 5 | 5 5 5 5 Final Carried 5 | 5 5 5 5 Class Distribution -------------------- 67% | Scavenger-Mutant 32% | Mutant Dominant Class ---------------- Mutant | -10/Materials Scavenger-Mutant | -10/Mines Scavenger-Mutant | -10/Subcaves Resources | -11 -10 -10 -10 ----------- Run | Yrd Mat Min Sub Matter Collected 653 | 265 33 140 215 Remotely . | . . . . Salvage Created 239 | 66 33 140 . Parts 18 | 5 3 10 . Haulers Intercepted . | . . . . Recyclers Shooed . | . . . . Parts Field Recycled . | . . . . Retrieved Matter . | . . . . Parts Self-Destructed 4 | . . . 4 Prevented . | . . . . Kills | -11 -10 -10 -10 ------- Run | Yrd Mat Min Sub Combat Hostiles Destroyed 8 | 1 2 5 . Guns 7 | 1 1 5 . Cannons 1 | . 1 . . Classes Destroyed 3 | 2 . 1 . Tunneler 1 | 1 . . . Swarmer 3 | . . 3 . Grunt 5 | 1 2 2 . Best Kill Streak 3 | 2 2 3 . Combat Bots Only 3 | 1 2 3 . Max Kills in Single Turn 1 | 1 1 1 . Gunslinging . | . . . . Exploded . | . . . . Melee . | . . . . Uniques/NPCs Destroyed . | . . . . Combat | -11 -10 -10 -10 -------- Run | Yrd Mat Min Sub Hostile Shots Fired 81 | 6 14 52 9 Missed 18 | 3 2 8 5 Damage Taken 987 | 32 176 486 293 Core 261 | 11 35 155 60 Absorbed by Shields . | . . . . Redirected to Shielding 32 | . . 32 . Core Remaining (%) 95 | 95 . . . Volleys Fired 36 | 5 8 23 . Largest 2 | 2 2 2 . Hottest 120 | 60 120 85 . Shots Fired 72 | 10 16 46 . Gun 69 | 10 13 46 . Cannon . | . . . . Launcher . | . . . . Special 3 | . 3 . . Kinetic 62 | 5 13 44 . Thermal 5 | . 3 2 . Explosive . | . . . . Electromagnetic 5 | 5 . . . Robot Hit Streak 12 | 3 4 12 . Robot Miss Streak 3 | 2 2 3 . Penetration Max . | . . . . Secondary Targets 2 | . . 2 . Max Gunslinging Chain 1 | . . 1 . Shots Hit Robots 47 | 5 10 32 . Core Hits 20 | 3 6 11 . Critical Kills . | . . . . Critical Parts Destroyed . | . . . . Critical Strikes . | . . . . Melee Attacks . | . . . . Impact . | . . . . Slashing . | . . . . Piercing . | . . . . Sneak Attacks . | . . . . Combat Hostiles . | . . . . Follow-up Attacks . | . . . . Damage Inflicted 534 | 114 109 311 . Guns 439 | 67 61 311 . Cannons . | . . . . Explosions 47 | 47 . . . Melee . | . . . . Ramming . | . . . . Kinetic 366 | 27 61 278 . Thermal 128 | 47 48 33 . Explosive . | . . . . Electromagnetic 40 | 40 . . . Impact . | . . . . Slashing . | . . . . Piercing . | . . . . Highest Corruption . | . . . . Average Corruption . | . . . . Corruption Purged . | . . . . Corruption Blocked . | . . . . Overload Shots . | . . . . Overflow Damage . | . . . . Projectiles . | . . . . Explosions . | . . . . Melee . | . . . . Knockbacks . | . . . . Impact . | . . . . Kinetic . | . . . . Secondary . | . . . . Self-Inflicted Damage . | . . . . Shots . | . . . . Rammed . | . . . . Targets Rammed . | . . . . Kicked . | . . . . Crushed . | . . . . Highest Temperature 132 | 38 132 100 . Average Temperature 47 | 23 84 24 . Received Heat Transfer 279 | 18 99 162 . Siege Activations . | . . . . Robots Corrupted . | . . . . Combat Hostiles . | . . . . Parts Fried . | . . . . Impact Corruptions . | . . . . Robots Melted . | . . . . Combat Hostiles . | . . . . Parts Melted . | . . . . Heat Transferred 224 | 50 100 74 . Parts Sabotaged . | . . . . Parts Stolen . | . . . . Parts Stripped . | . . . . Power Chain Reactions 1 | 1 . . . Alert | -11 -10 -10 -10 ------- Run | Yrd Mat Min Sub Peak Influence 160 | 25 78 160 . Initial 30 | . 16 30 . Average 66 | 5 65 76 . Maximum Alert Level . | . . . . Low Security (%) 100 | 100 100 100 . Level 1 . | . . . . Level 2 . | . . . . Level 3 . | . . . . Level 4 . | . . . . Level 5 . | . . . . High Security . | . . . . Max Security . | . . . . Squads Dispatched 1 | . 1 . . Investigation . | . . . . Extermination . | . . . . Reinforcement 1 | . 1 . . Assault . | . . . . Garrison . | . . . . Intercept . | . . . . Searches Triggered . | . . . . Construction Impeded . | . . . . Haulers Reinforced . | . . . . Active Scanning Responses . | . . . . Cargo Convoy Interrupts . | . . . . Stealth | -11 -10 -10 -10 --------- Run | Yrd Mat Min Sub Distress Signals 1 | . 1 . . Communications Jammed . | . . . . Distress Signals . | . . . . Times Spotted 22 | 1 5 7 9 Peak Tracking Total 12 | 1 2 12 5 Tactical Retreats 3 | . . 2 1 Traps | -11 -10 -10 -10 ------- Run | Yrd Mat Min Sub Traps Triggered . | . . . . Indirectly . | . . . . Trap Hack Attempts . | . . . . Triggered . | . . . . Disarmed . | . . . . Reprogrammed . | . . . . Reused . | . . . . Traps Extracted . | . . . . Installed . | . . . . Triggered . | . . . . Machines | -11 -10 -10 -10 ---------- Run | Yrd Mat Min Sub Machines Disabled . | . . . . Max in Single Turn . | . . . . Machines Repaired . | . . . . Machines Dismantled . | . . . . Machines Sabotaged . | . . . . Overloaded Fab Kills . | . . . . Hacking | -11 -10 -10 -10 --------- Run | Yrd Mat Min Sub Machines Accessed 4 | . 3 1 . Terminals 3 | . 2 1 . Fabricators . | . . . . Repair Stations . | . . . . Recycling Units 1 | . 1 . . Scanalyzers . | . . . . Garrison Access . | . . . . Total Hacks 13 | . 10 3 . Successful 9 | . 7 2 . Failed 4 | . 3 1 . Catastrophic . | . . . . Database Lockouts . | . . . . Manual 1 | . . 1 . Terminals 10 | . 7 3 . Fabricators . | . . . . Repair Stations . | . . . . Recycling Units 3 | . 3 . . Scanalyzers . | . . . . Garrison Access . | . . . . Terminal Hacks 6 | . 4 2 . Record 4 | . 3 1 . Locate Traps 1 | . 1 . . Zone Layout 1 | . . 1 . Fabricator Hacks . | . . . . Repair Station Hacks . | . . . . Recycling Unit Hacks 3 | . 3 . . Process 1 | . 1 . . Report Inventory 1 | . 1 . . Retrieve Components 1 | . 1 . . Scanalyzer . | . . . . Garrison Access Hacks . | . . . . Unauthorized Hacks . | . . . . Terminals . | . . . . Fabricators . | . . . . Repair Stations . | . . . . Recycling Units . | . . . . Scanalyzers . | . . . . Garrison Access . | . . . . Data Cores Recovered . | . . . . Used . | . . . . Hacking Detections 3 | . 2 1 . Full Trace Events 2 | . 2 . . Feedback Events . | . . . . Feedback Blocked . | . . . . Robot Schematics Acquired . | . . . . Robots Built . | . . . . Authchips . | . . . . Time . | . . . . Total Robot Build Rating . | . . . . Part Schematics Acquired . | . . . . Parts Built . | . . . . Authchips . | . . . . Time . | . . . . Total Part Build Rating . | . . . . Parts Repaired . | . . . . Time . | . . . . Parts Recycled . | . . . . Recycled Matter 65 | . 65 . . Retrieved Matter . | . . . . Retrieved Components . | . . . . Parts Scanalyzed . | . . . . Part Schematics Acquired . | . . . . Parts Damaged . | . . . . Bothacking | -11 -10 -10 -10 ------------ Run | Yrd Mat Min Sub Used RIF Installer . | . . . . Robots Hacked . | . . . . Non-combat . | . . . . Combat . | . . . . Robot Hacks Applied . | . . . . Relay Couplers Released . | . . . . Fabnet Peak Effective % . | . . . . Robots Rewired . | . . . . Allies Hacked . | . . . . Hacks Repelled . | . . . . Allies | -11 -10 -10 -10 -------- Run | Yrd Mat Min Sub Total Allies . | . . . . Largest Group . | . . . . Highest-Rated Group . | . . . . Highest-Rated Ally . | . . . . Total Orders . | . . . . Ally Attacks . | . . . . Total Damage . | . . . . Kills . | . . . . Allies Corrupted . | . . . . Allies Melted . | . . . . Intel | -11 -10 -10 -10 ------- Run | Yrd Mat Min Sub Robot Analysis Total . | . . . . Derelict Logs Recovered 2 | . . 1 1 Drone Launches . | . . . . Drone Recoveries . | . . . . Exploration | -11 -10 -10 -10 ------------- Run | Yrd Mat Min Sub Turns Passed 2086 | 95 296 571 1124 Spaces Moved 1358 | 86 284 338 650 Core 19 | 17 . . 2 Treads . | . . . . Legs 986 | . . 338 648 Wheels 353 | 69 284 . . Hover . | . . . . Flight . | . . . . Fastest Speed 50 | 50 80 120 50 Average Speed 122 | 74 80 120 148 Slowest Speed 190 | 80 80 120 190 Overloaded Moves . | . . . . Propulsion Burnouts . | . . . . Robots Hopped . | . . . . Cave-ins Triggered . | . . . . Exploration Rate (%) 33 | 5 34 61 33 Regions Visited 3 Branch Regions 2 Pre-discovered Areas . | . . . . Known Exits Taken . | . . . . Unknown Exits Taken 3 | 1 1 1 . Scrap Searched . | . . . . Spaces Dug . | . . . . Terrain Destroyed 1 | . 1 . . Melee . | . . . . Projectile 1 | . 1 . . AOE . | . . . . Terrain Rammed . | . . . . Walls Destroyed . | . . . . Machines Disabled . | . . . . Actions | -11 -10 -10 -10 --------- Run | Yrd Mat Min Sub Total 1712 | 108 329 464 811 Wait 242 | 1 22 85 134 Move 1355 | 85 283 337 650 Hop . | . . . . Pick Up 18 | 10 2 2 4 Fast Attach 10 | 1 4 . 5 Attach 11 | 5 1 4 1 Detach 2 | . . 1 1 Swap 16 | . 5 7 4 Drop 22 | 1 4 5 12 Fire 36 | 5 8 23 . Melee . | . . . . Ram . | . . . . Kick . | . . . . Crush . | . . . . Escape Stasis . | . . . . Rewire . | . . . . Trap . | . . . . Miscellaneous . | . . . . Route ------- -11/Scrapyard -10/Materials -10/Mines -10/Subcaves History --------- Turn | Location | Event 2 | -11/Scrapyard | Met Revision 17 57 | -11/Scrapyard | Discovered new exit (range 8) 96 | -11/Scrapyard | Entered Materials 307 | -10/Materials | Build established: Mutant 382 | -10/Materials | Discovered new exit (range 13) 392 | -10/Materials | Entered Mines 661 | -10/Mines | Core integrity fell below 50% 770 | -10/Mines | Learned 2 Materials zone layouts 788 | -10/Mines | Found a damaged Exp. Sensor Array with a note attached 791 | -10/Mines | Found Prototype Device 893 | -10/Mines | Assembled infested the area 899 | -10/Mines | Core integrity fell below 20% 958 | -10/Mines | Discovered new exit (range 6) 963 | -10/Mines | Entered Subcaves 1007 | -10/Subcaves | Build established: Scavenger-Mutant 1071 | -10/Subcaves | Ambushed by swarm of Subdwellers 1307 | -10/Subcaves | A swath of the cavern ceiling suddenly collapsed 1452 | -10/Subcaves | A swath of the cavern ceiling suddenly collapsed 1883 | -10/Subcaves | Shifting Twisted Machinery released Sub. Shrapnel Launcher 2051 | -10/Subcaves | Learned Materials security intel 2079 | -10/Subcaves | Disturbed a concealed Subdweller 2083 | -10/Subcaves | Ambushed by Subdweller buried in earth 2087 | -10/Subcaves | Released all parts (7) 2087 | -10/Subcaves | Destroyed by PD-ICU(R) with Subdweller Machine Gun Last Messages --------------- 01536_ Acquired 10 matter. Sub. Shrapnel Launcher falls loose from the Twisted Machinery. 01973_ CE-CAO(g) destroyed. Want a larger map view with more modal windows? Or have a large enough display to fit a bigger map in exchange for smaller text? Consider selecting a different UI Layout in the option menu. 02012_ Extracted 4 energy. 02014_ Dropped Heat Sink. 02014_ Acquired Sml. Battery. 02051_ Acquired derelict log, extracted data. Data stored: Materials security intel. 02079_ PD-ICU(R) angrily emerges from the Twisted Machinery. 02079_ C5-CWW(g) destroyed. 02084_ J6-DGM(R): "ARGHSUB!" 02087_ Released Neutrino Core. 02087_ Released Aluminum Leg. 02087_ Released Seismic Detector. 02087_ Released Sub. Machine Gun. 02087_ Released Sub. Laser. 02087_ Released Imp. Heat Sink. Map ----- +----------------------------------------------------+ | | | | | | | | | | | | | ?????????????????????????????????????????????????? | | ?????????????????????????????????????????????????? | | ?????????????????????????????????????????????????? | | ?????????????????????????????????????????????????? | | ?????????????????????????????????????????????????? | | ?????????????????????????????????????????????????? | | ?????????????????????????????????????????????????? | | ?????????????????????????????????????????????????? | | ?????????????????????????????????????????????????? | | ?????????????????????????????????????????????????? | | ?????????????????????????????????????????????????? | | ?????????????????????????????????????????????????? | | ????????????????????????#####????????????????????? | | ???????????????????????## ####?????????????????? | | ???????????????????##### ###???#????????#### | | ?????#########?????# ; ;; ## ####????##""# | | ??#### # ## ##???## R ;;;;; ##?### ""# | | ?## #####= ; ; ###"" """ | | ?# % !%! [! % R "" """ | | ?# #### * ! @[*= "" " | | ## ##?# ### ! != ; ;; ; # """" " | | ## ##??## #### $ ;;##;;##?? "#"" "" | | ####???## #??## $R ####???# ????##""" | | #??????# ##???# #?????## ??##"""[# | | ####??????# #???# ;##???### ###"""=## | | ?????????## ##??## ;#???## """"= #? | | ??????#### #???###########???# """"[ ##? | | ??????# ##????????????????# """"|%###? | | ??????# #????????????????# ####""""&%%%#? | | ????### ###????????????????????##"""""&*### | | ## #?????????????????????## """""!=### | | ##?????????????????????# """"&& [&& | | ##???#???????????????###"""""&&*[&%= | | ## "## ?""#???????????????# """ ##*& [ | | #?#"""# ""#????????????????# #####&!!! | | """### #??#"###"""#????????????????# ####*= # | | ?????##???#""""#???????????????????## ## ## | | ????#######""##""#??????????????????# ###? | | ???## """##"# ????????????????????# #####? | | ??## "#""""# ?###????????????????# #?# ## | | ??# ###"#"## ? ##???????????????# ### # | | ??# ###"## ? #???????????????# # | | ## ##?#### #? #??????????????# ## # | | ##????# ## #?????????????# #### | +----------------------------------------------------+ Best States ------------- Heat Dissipation 39 Energy Generation 19 Energy Capacity 315 Matter Stores 300 Matter Capacity 350 Sight Range 21 Terrain Scan Density 10 Armor Coverage 800 Weapon Shielding 33 Evasion (%) 55 Item Schematics ----------------- None Robot Schematics ------------------ None Fabricated ------------ Nothing Alien Tech Used ----------------- None Achievements -------------- Slippery One Challenges ------------ None Game ------ Seed SystemChipCleaver Manual? 0 Play Time 02:11:11 Cumulative 9.2 hours Start 2024.03.18 @ 19:56:41 End 2024.03.19 @ 21:55:21 Sessions 4 Manual Loads 0 Difficulty Rogue Special Mode None Game No. 4 Rogue 4 Adventurer 0 Explorer 0 Win Type - Total 0 Types 0/0/0/0/0/0/0/0/0 Lore% 2 Gallery% 7 Achievement% 17 Wizard Run 0 Options --------- Layout 0 ASCII 0 Keyboard 1 Movement Numpad Keybinds 0 Fullscreen 1 Font 18/X11Bold Map View 76x50 Zoom Use 0% Tactical HUD 1 Map Filters NONE Filters NONE Steam 1 RUN: 263332d0-1615-42f3-bf02-c90805e9bea9